fUSD/lending_fUSD_20240216
["ID","MTS","AMOUNT","RATE_DAILY","PERIOD"]
[314220420,1708091441452,-500.0,0.00042465,31]
[314220422,1708091441461,-500.0,0.00042465,31]
[314220424,1708091441470,-500.0,0.00042465,31]
[314220425,1708091441479,-997.0,0.00042465,31]
[314220428,1708091441489,-3693.67979953,0.00042468,4]
[314220430,1708091441499,-211.0,0.0004249,2]
[314220432,1708091441508,-37583.2605,0.00042539,2]
[314220433,1708091441518,-900.0,0.00042739,7]
[314220434,1708091441527,-153.81175386,0.00042832,30]
[314220435,1708091441537,-1756.65416154,0.00042961,5]
[314220436,1708091441546,-32125.66406082,0.00042979,5]
[314220437,1708091441556,-153.81175386,0.00043043,30]
[314220438,1708091441565,-490.4,0.00043122,2]
[314220439,1708091441574,-1050.0,0.00043287,7]
[314220440,1708091441583,-500.0,0.00043288,7]
[314220441,1708091441592,-164.680254,0.000434,15]
[314220442,1708091441601,-150.0,0.00043403,2]
[314220443,1708091441610,-189.37,0.00043411,2]
[314220444,1708091441619,-153.81175386,0.00043426,30]
[314220445,1708091441628,-153.81175386,0.00043478,30]
[314220446,1708091441638,-303.04,0.000435,2]
[314220447,1708091441646,-500.0,0.00043561,7]
[314220448,1708091441656,-154.49,0.000436,4]
[314220449,1708091441666,-154.49,0.000436,4]
[314220450,1708091441677,-150.0,0.000436,15]
[314220451,1708091441686,-1756.65416154,0.00043603,5]
[314220452,1708091441695,-153.81175386,0.00043606,30]
[314220453,1708091441703,-153.81175386,0.00043667,30]
[314220454,1708091441712,-5011.588624,0.000437,6]
[314220455,1708091441721,-150.0,0.000438,33]
[314220456,1708091441730,-150.0,0.000438,15]
[314220457,1708091441739,-153.81175386,0.00043824,30]
[314220458,1708091441748,-500.0,0.00043834,7]
[314220459,1708091441757,-1200.0,0.00043835,7]
[314220460,1708091441766,-72384.5264107,0.0004389,10]
[314220461,1708091441775,-90000.0,0.000439,30]
[314220462,1708091441784,-153.81175386,0.00043976,30]
[314220463,1708091441793,-174.64,0.00044206,2]
[314220464,1708091441802,-1756.65416154,0.00044246,5]
[314220465,1708091441810,-245.75048888,0.00044299,4]
[314220466,1708091441819,-150.0,0.000443,34]
[314220467,1708091441828,-2000.0,0.00044322,120]
[314220468,1708091441837,-2000.0,0.00044322,120]
[314220469,1708091441846,-151.58014321,0.00044347,23]
[314220470,1708091441855,-1181.79988346,0.00044383,7]
[314220471,1708091441864,-167.43,0.00044392,2]
[314220472,1708091441872,-2627.1841293,0.00044396,19]
[314220473,1708091441881,-150.0,0.00044412,2]
[314220474,1708091441890,-199.99288599,0.00044434,11]
[314220475,1708091441899,-766.0,0.0004449,2]
[314220476,1708091441907,-196.38166492,0.00044496,19]
[314220477,1708091441917,-321.32,0.0004454,2]
[314220478,1708091441926,-72384.5264107,0.00044586,10]
[314220479,1708091441935,-1123.89657711,0.00044595,7]
[314220480,1708091441946,-100000.0,0.00044596,2]
[314220481,1708091441955,-997.98,0.00044596,2]
[314220482,1708091441964,-454.0257,0.00044596,3]
[314220483,1708091441973,-39488.7513,0.00044596,2]
[314220484,1708091441983,-1830.5033,0.00044596,2]
[314220485,1708091441992,-1808.29943736,0.00044639,30]
[314220486,1708091442002,-1277.23220876,0.00044639,30]
[314220487,1708091442012,-150.0,0.000448,34]
[314220488,1708091442021,-156.79701149,0.00044812,2]
[314220489,1708091442031,-1756.65416154,0.00044888,5]
[314220490,1708091442040,-72384.5264107,0.0004489,10]
[314220491,1708091442049,-90000.0,0.000449,30]
[314220492,1708091442058,-3153.7,0.00044931,105]
[314220493,1708091442067,-3693.67979953,0.00044959,6]
[314220494,1708091442076,-4832.72150516,0.00045,17]
[314220495,1708091442086,-506.12995973,0.00045,4]
[314220496,1708091442094,-3451.03891199,0.00045,120]
[314220497,1708091442105,-3294.43378057,0.00045,45]
[314220498,1708091442115,-10000.0,0.00045,45]
[314220499,1708091442124,-5000.0,0.00045,30]
[314220500,1708091442133,-189.37,0.00045055,2]
[314220501,1708091442143,-438.186,0.00045069,2]
[314220502,1708091442153,-2871.0,0.00045069,2]
[314220503,1708091442162,-1372.308,0.00045069,2]
[314220504,1708091442171,-151.58014321,0.00045138,26]
[314220505,1708091442180,-150.0,0.00045279,30]
[314220506,1708091442189,-381.543,0.00045279,30]
[314220507,1708091442200,-150.0,0.000453,35]
[314220508,1708091442208,-153.81175386,0.00045317,30]
[314220509,1708091442217,-153.81175386,0.00045332,30]
[314220510,1708091442227,-2627.18412925,0.00045351,20]
[314220511,1708091442236,-490.4,0.00045386,2]
[314220512,1708091442245,-72384.5264107,0.00045387,10]
[314220513,1708091442254,-32125.66406082,0.00045397,7]
[314220514,1708091442262,-150.0,0.00045422,2]
[314220515,1708091442271,-466.2909,0.00045447,2]
[314220516,1708091442280,-1000.0,0.000455,2]
[314220517,1708091442289,-1756.65416154,0.00045531,5]
[314220518,1708091442298,-180.261755,0.00045586,30]
[314220519,1708091442307,-153.81175386,0.00045717,30]
[314220520,1708091442316,-1000.0,0.00045738,2]
[314220521,1708091442325,-150.0,0.000458,35]
[314220522,1708091442334,-869.23,0.00045905,15]
[314220523,1708091442343,-151.58014321,0.00045929,29]
[314220524,1708091442353,-3293.0,0.00046,45]
[314220525,1708091442362,-10000.0,0.00046,45]
[314220526,1708091442371,-868.02286732,0.0004606,120]
[314220527,1708091442380,-152.0,0.00046167,3]
[314220528,1708091442389,-1756.65416154,0.00046174,5]
[314220529,1708091442398,-164.553682,0.000463,36]
[314220530,1708091442407,-2627.18412925,0.00046306,21]
[314220531,1708091442417,-1125.9655,0.00046375,2]
[314220532,1708091442426,-150.0,0.00046431,2]
[314220533,1708091442435,-199.99288599,0.00046486,12]
[314220534,1708091442444,-3000.0,0.00046575,120]
[314220535,1708091442454,-1000.0,0.00046575,120]
[314220536,1708091442463,-1000.0,0.00046575,120]
[314220537,1708091442472,-1000.0,0.00046575,120]
[314220538,1708091442481,-1000.0,0.00046575,120]
[314220539,1708091442490,-1000.0,0.00046575,120]
[314220540,1708091442499,-1000.0,0.00046575,120]
[314220541,1708091442508,-1000.0,0.00046575,120]
[314220542,1708091442517,-1000.0,0.00046575,120]
[314220543,1708091442526,-1000.0,0.00046575,120]
[314220544,1708091442535,-1059.0,0.00046575,120]
[314220545,1708091442545,-180.36270987,0.00046586,30]
[314220546,1708091442554,-189.37,0.00046699,2]
[314220547,1708091442563,-151.58014321,0.00046721,32]
[314220548,1708091442572,-153.81175386,0.00046749,30]
[314220549,1708091442581,-1000.0,0.00046797,2]
[314220550,1708091442590,-1756.65416154,0.00046816,5]
[314220551,1708091442601,-456.87,0.00047,7]
[314220552,1708091442610,-204.185687,0.00047123,120]
[314220553,1708091442619,-153.81175386,0.00047202,30]
[314220554,1708091442629,-2627.18412925,0.00047261,23]
[314220555,1708091442638,-150.0,0.0004744,2]
[314220556,1708091442647,-3693.67979953,0.00047449,9]
[314220557,1708091442656,-1756.65416154,0.00047459,5]
[314220558,1708091442666,-153.81175386,0.00047478,30]
[314220559,1708091442674,-151.58014321,0.00047512,35]
[314220560,1708091442683,-456.87,0.000476,7]
[314220561,1708091442691,-490.4,0.0004765,2]
[314220562,1708091442700,-3000.0,0.00047671,120]
[314220563,1708091442709,-500.0,0.0004774,90]
[314220564,1708091442718,-72384.5264107,0.00047804,11]
[314220565,1708091442727,-32125.66406082,0.00047814,9]
[314220566,1708091442736,-153.81175386,0.00047814,30]
[314220567,1708091442746,-150.91484715,0.0004785,30]
[314220568,1708091442755,-153.81175386,0.00048044,30]
[314220569,1708091442764,-2871.0,0.00048069,2]
[314220570,1708091442774,-1756.65416154,0.00048102,5]
[314220572,1708091442783,-3440.4,0.00048161,117]
[314220573,1708091442791,-5000.0,0.00048182,7]
[314220574,1708091442801,-1238.0,0.0004819,2]
[314220575,1708091442810,-713.8090273,0.00048193,2]
[314220576,1708091442818,-417.10075618,0.00048193,2]
[314220577,1708091442827,-1000.0,0.000482,2]
[314220578,1708091442836,-2000.0,0.000482,2]
[314220580,1708091442846,-2627.18412925,0.00048216,24]
[314220581,1708091442855,-72384.5264107,0.00048283,11]
[314220582,1708091442865,-500.0,0.00048293,2]
[314220583,1708091442874,-245000.0,0.00048293,2]
[314220584,1708091442883,-151.58014321,0.00048303,38]
[314220585,1708091442891,-1246.22,0.00048343,120]
[314220587,1708091442901,-2776.49,0.00048348,2]
[314220588,1708091442910,-1078.16,0.00048348,2]
[314220589,1708091442920,-153.81175386,0.00048398,30]
[314220590,1708091442929,-7500.0,0.000484,14]
[314220591,1708091442939,-150.0,0.0004845,2]
[314220592,1708091442948,-153.81175386,0.00048464,30]
[314220593,1708091442960,-421.01,0.00048493,2]
[314220594,1708091442968,-342.2,0.00048493,2]
[314220595,1708091442978,-1963.2808,0.00048498,39]
[314220596,1708091442989,-5000.0,0.000485,45]
[314220597,1708091442998,-199.99288599,0.00048539,13]
[314220598,1708091443008,-153.81175386,0.00048653,30]
[314220599,1708091443017,-1756.65416154,0.00048744,5]
[314220600,1708091443027,-3000.0,0.00048767,120]
[314220601,1708091443035,-155.0,0.00049,2]
[314220602,1708091443044,-153.81175386,0.0004903,30]
[314220603,1708091443053,-151.58014321,0.00049094,41]
[314220604,1708091443062,-2627.18412925,0.00049171,25]
[314220605,1708091443072,-153.81175406,0.00049261,30]
[314220606,1708091443081,-150.0,0.00049281,60]
[314220607,1708091443090,-207.0,0.00049308,10]
[314220608,1708091443099,-206.0,0.00049308,10]
[314220609,1708091443108,-915.62,0.00049315,2]
[314220610,1708091443118,-405.38,0.00049315,2]
[314220611,1708091443127,-915.62,0.00049315,2]
[314220612,1708091443137,-915.62,0.00049315,2]
[314220613,1708091443146,-915.62,0.00049315,2]
[314220614,1708091443156,-405.38,0.00049315,2]
[314220615,1708091443166,-915.62,0.00049315,2]
[314220616,1708091443176,-405.38,0.00049315,2]
[314220617,1708091443186,-915.62,0.00049315,2]
[314220618,1708091443195,-915.62,0.00049315,2]
[314220619,1708091443204,-405.38,0.00049315,2]
[314220620,1708091443214,-915.62,0.00049315,2]
[314220621,1708091443224,-915.62,0.00049315,2]
[314220622,1708091443234,-405.38,0.00049315,2]
[314220623,1708091443244,-405.38,0.00049315,2]
[314220624,1708091443253,-405.38,0.00049315,2]
[314220625,1708091443263,-405.38,0.00049315,2]
[314220626,1708091443272,-405.38,0.00049315,2]
[314220627,1708091443282,-405.38,0.00049315,2]
[314220628,1708091443291,-800.0,0.00049315,30]
[314220629,1708091443300,-800.0,0.00049315,30]
[314220630,1708091443309,-800.0,0.00049315,30]
[314220631,1708091443319,-1756.65416154,0.00049387,5]
[314220632,1708091443328,-150.68,0.0004941,2]
[314220633,1708091443337,-150.0,0.00049459,2]
[314220634,1708091443347,-200.0,0.000496,30]
[314220635,1708091443356,-869.23,0.00049641,120]
[314220637,1708091443366,-3000.0,0.00049863,120]
[314220639,1708091443374,-1018.39017287,0.00049869,30]
[314220640,1708091443383,-151.58014321,0.00049885,44]
[314220641,1708091443393,-490.4,0.00049914,2]
[314220642,1708091443402,-200.0,0.0004992,30]
[314220643,1708091443412,-3693.67979953,0.00049939,11]
[314220645,1708091443422,-237.87546854,0.00049999,120]
[314220647,1708091443432,-100000.0,0.0005,40]
[314220648,1708091443442,-43562.0,0.0005,12]
[314220649,1708091443451,-158.57188374,0.0005,30]
[314220650,1708091443574,-3585.24538656,0.0005,45]
[314220651,1708091443584,-288.15559393,0.0005,30]
[314220652,1708091443594,-163.91679784,0.0005,30]
[314220653,1708091443603,-56327.94661446,0.0005,30]
[314220654,1708091443613,-632.0,0.0005,120]
[314220655,1708091443622,-20000.0,0.0005,120]
[314220656,1708091443632,-151.33320587,0.0005,30]
[314220657,1708091443641,-1353.19,0.0005,7]
[314220658,1708091443651,-170.61912571,0.00050125,53]
[314220659,1708091443660,-2627.18412925,0.00050125,26]
[314220660,1708091443671,-150.61036008,0.00050169,120]
[314220661,1708091443680,-1417.65908884,0.00050179,30]
[314220662,1708091443689,-32125.66406082,0.00050231,11]
[314220663,1708091443699,-1353.19,0.000504,7]
[314220664,1708091443707,-150.0,0.00050469,2]
[314220665,1708091443716,-1417.65908884,0.00050535,30]
[314220666,1708091443726,-199.99288599,0.00050591,14]
[314220667,1708091443735,-151.58014321,0.00050676,47]
[314220668,1708091443744,-3396.930249,0.00050684,120]
[314220669,1708091443754,-5459.306587,0.00050684,30]
[314220670,1708091443763,-12837.975641,0.00050684,30]
[314220671,1708091443772,-1417.65908884,0.00050741,30]
[314220672,1708091443781,-17513.0,0.000508,120]
[314220673,1708091443790,-1353.19,0.000508,7]
[314220674,1708091443799,-1000.0,0.0005082,120]
[314220675,1708091443809,-207.0,0.00050836,20]
[314220676,1708091443818,-3000.0,0.00050958,120]
[314220677,1708091443827,-1087.31554535,0.0005096,30]
[314220678,1708091443836,-1417.65908884,0.0005096,30]
[314220679,1708091443845,-100000.0,0.00051,41]
[314220680,1708091443855,-200.0,0.00051,120]
[314220681,1708091443865,-1000.0,0.00051,120]
[314220682,1708091443874,-1000.0,0.00051,2]
[314220683,1708091443883,-250.0,0.00051,2]
[314220684,1708091443892,-170.0,0.00051,120]
[314220685,1708091443902,-10000.0,0.00051,120]
[314220686,1708091443911,-10000.0,0.00051,120]
[314220687,1708091443921,-10000.0,0.00051,120]
[314220688,1708091443930,-159.0,0.00051,120]
[314220689,1708091443941,-402.49,0.0005105,30]
[314220690,1708091443952,-2871.0,0.00051069,120]
[314220691,1708091443961,-152.0,0.00051079,4]
[314220692,1708091443970,-2627.18412925,0.0005108,27]
[314220693,1708091443980,-1353.19,0.000511,7]
[314220694,1708091443991,-250.0,0.00051274,2]
[314220695,1708091444000,-1417.65908884,0.00051348,30]
[314220696,1708091444010,-1500.0,0.00051364,7]
[314220697,1708091444019,-7451.6,0.00051392,117]
[314220698,1708091444029,-151.58014321,0.00051468,50]
[314220699,1708091444039,-150.0,0.00051478,2]
[314220700,1708091444048,-154.13603139,0.0005148,2]
[314220701,1708091444058,-1000.0,0.000515,120]
[314220702,1708091444067,-3000.0,0.000515,45]
[314220703,1708091444076,-5000.0,0.000515,60]
[314220704,1708091444085,-280.0,0.000515,120]
[314220705,1708091444094,-1353.19,0.000515,7]
[314220706,1708091444103,-849.232562,0.00051506,120]
[314220707,1708091444112,-1364.826646,0.00051506,30]
[314220708,1708091444121,-716.3495201,0.00051527,30]
[314220709,1708091444130,-713.80902729,0.00051547,2]
[314220710,1708091444139,-417.10075617,0.00051547,120]
[314220711,1708091444148,-250.0,0.00051548,2]
[314220712,1708091444157,-17513.0,0.000516,120]
[314220713,1708091444166,-2229.79,0.00051663,120]
[314220714,1708091444175,-150.0,0.00051715,60]
[314220715,1708091444183,-500.0,0.0005172,120]
[314220716,1708091444192,-200.0,0.0005174,2]
[314220717,1708091444201,-1706.60866,0.00051748,2]
[314220718,1708091444210,-152.900207,0.0005176,49]
[314220719,1708091444219,-1417.65908884,0.0005177,30]
[314220720,1708091444228,-500.0,0.000518,2]
[314220721,1708091444237,-500.0,0.000518,2]
[314220722,1708091444246,-350.0,0.000518,2]
[314220723,1708091444255,-500.0,0.000518,2]
[314220724,1708091444265,-500.0,0.000518,2]
[314220725,1708091444274,-500.0,0.000518,2]
[314220726,1708091444283,-500.0,0.000518,2]
[314220727,1708091444292,-500.0,0.000518,2]
[314220728,1708091444301,-500.0,0.000518,2]
[314220729,1708091444310,-500.0,0.000518,2]
[314220730,1708091444319,-500.0,0.000518,2]
[314220731,1708091444329,-500.0,0.000518,2]
[314220732,1708091444338,-500.0,0.000518,2]
[314220733,1708091444348,-500.0,0.000518,2]
[314220734,1708091444357,-500.0,0.000518,2]
[314220735,1708091444367,-500.0,0.000518,2]
[314220736,1708091444376,-500.0,0.000518,2]
[314220737,1708091444386,-500.0,0.000518,2]
[314220738,1708091444395,-500.0,0.000518,2]
[314220739,1708091444404,-500.0,0.000518,2]
[314220740,1708091444414,-500.0,0.000518,2]
[314220741,1708091444423,-500.0,0.000518,2]
[314220742,1708091444432,-500.0,0.000518,2]
[314220743,1708091444442,-500.0,0.000518,2]
[314220744,1708091444451,-500.0,0.000518,2]
[314220745,1708091444460,-500.0,0.000518,2]
[314220746,1708091444470,-500.0,0.000518,2]
[314220747,1708091444479,-500.0,0.000518,2]
[314220748,1708091444488,-500.0,0.000518,2]
[314220749,1708091444498,-500.0,0.000518,2]
[314220750,1708091444507,-500.0,0.000518,2]
[314220751,1708091444516,-500.0,0.000518,2]
[314220752,1708091444525,-500.0,0.000518,2]
[314220753,1708091444534,-500.0,0.000518,2]
[314220754,1708091444543,-500.0,0.000518,2]
[314220755,1708091444551,-500.0,0.000518,2]
[314220756,1708091444560,-500.0,0.000518,2]
[314220757,1708091444570,-500.0,0.000518,2]
[314220758,1708091444579,-500.0,0.000518,2]
[314220759,1708091444588,-500.0,0.000518,2]
[314220760,1708091444597,-500.0,0.000518,2]
[314220761,1708091444606,-500.0,0.000518,2]
[314220762,1708091444616,-500.0,0.000518,2]
[314220763,1708091444625,-500.0,0.000518,2]
[314220764,1708091444634,-500.0,0.000518,2]
[314220765,1708091444643,-150.0,0.000518,30]
[314220766,1708091444652,-1353.19,0.000518,7]
[314220767,1708091444661,-1327.623976,0.000518,25]
[314220768,1708091444672,-200.0,0.00051816,30]
[314220769,1708091444681,-1000.0,0.0005182,25]
[314220770,1708091444690,-1000.0,0.0005184,25]
[314220771,1708091444699,-1000.0,0.0005186,25]
[314220772,1708091444708,-1000.0,0.0005188,25]
[314220773,1708091444717,-17662.0000806,0.000519,120]
[314220774,1708091444727,-150.61036008,0.000519,120]
[314220775,1708091444737,-1000.0,0.000519,25]
[314220776,1708091444746,-1000.0,0.0005192,25]
[314220777,1708091444755,-168.7123261,0.00051925,29]
[314220778,1708091444764,-1000.0,0.0005194,25]
[314220779,1708091444773,-1425.096121,0.0005194,25]
[314220780,1708091444782,-1000.0,0.0005196,25]
[314220781,1708091444791,-1000.0,0.0005196,25]
[314220782,1708091444800,-10000.0,0.0005197,30]
[314220783,1708091444809,-1000.0,0.0005198,25]
[314220784,1708091444818,-1000.0,0.0005198,25]
[314220785,1708091444826,-890.02085763,0.00051998,120]
[314220786,1708091444835,-9383.80442509,0.00051999,2]
[314220787,1708091444844,-1000.0,0.00051999,120]
[314220788,1708091444853,-100000.0,0.00052,42]
[314220789,1708091444863,-5323.96096066,0.00052,30]
[314220790,1708091444872,-69376.59604912,0.00052,60]
[314220791,1708091444988,-220722.53395088,0.00052,60]
[314220792,1708091444997,-300.0,0.00052,52]
[314220793,1708091445007,-14578.0,0.00052,120]
[314220794,1708091445016,-200.0,0.00052,89]
[314220795,1708091445026,-10000.0,0.00052,90]
[314220796,1708091445035,-10000.0,0.00052,90]
[314220797,1708091445044,-10000.0,0.00052,90]
[314220798,1708091445053,-10000.0,0.00052,120]
[314220799,1708091445063,-10000.0,0.00052,120]
[314220800,1708091445072,-10000.0,0.00052,120]
[314220801,1708091445081,-10000.0,0.00052,90]
[314220802,1708091445090,-10000.0,0.00052,90]
[314220803,1708091445099,-10000.0,0.00052,90]
[314220804,1708091445108,-10000.0,0.00052,120]
[314220805,1708091445117,-10000.0,0.00052,120]
[314220806,1708091445125,-10000.0,0.00052,120]
[314220807,1708091445134,-200.0,0.00052,30]
[314220808,1708091445143,-150.0,0.00052,89]
[314220809,1708091445153,-1600.07852,0.00052,28]
[314220810,1708091445162,-3000.0,0.00052,59]
[314220811,1708091445172,-1000.0,0.00052,25]
[314220812,1708091445181,-1000.0,0.00052,25]
[314220813,1708091445192,-6230.0,0.00052025,61]
[314220814,1708091445201,-6230.0,0.00052035,61]
[314220815,1708091445211,-2627.18412925,0.00052035,29]
[314220816,1708091445220,-6230.0,0.00052045,61]
[314220817,1708091445230,-462.667275,0.00052054,120]
[314220818,1708091445239,-250.079935,0.00052054,30]
[314220819,1708091445248,-614.013427,0.00052054,30]
[314220820,1708091445257,-303.02165,0.00052054,30]
[314220821,1708091445267,-200.813629,0.00052054,120]
[314220822,1708091445276,-9376.751231,0.00052054,30]
[314220823,1708091445287,-1137.035678,0.00052054,120]
[314220824,1708091445296,-413.688828,0.00052054,120]
[314220825,1708091445305,-3412.066616,0.00052054,30]
[314220826,1708091445315,-554.45796846,0.00052054,120]
[314220827,1708091445324,-424.616281,0.00052054,120]
[314220828,1708091445333,-682.413323,0.00052054,30]
[314220829,1708091445343,-716.3495201,0.00052116,30]
[314220830,1708091445353,-154.0,0.00052155,120]
[314220831,1708091445364,-490.4,0.00052177,2]
[314220832,1708091445374,-151.58014321,0.00052259,53]
[314220833,1708091445383,-1417.65908884,0.00052317,30]
[314220834,1708091445393,-400.0,0.00052327,2]
[314220835,1708091445402,-500.0,0.00052327,2]
[314220836,1708091445412,-500.0,0.00052327,2]
[314220837,1708091445422,-500.0,0.00052327,2]
[314220838,1708091445432,-500.0,0.00052327,2]
[314220839,1708091445442,-500.0,0.00052327,2]
[314220840,1708091445451,-500.0,0.00052327,2]
[314220841,1708091445460,-500.0,0.00052327,2]
[314220842,1708091445470,-500.0,0.00052327,2]
[314220843,1708091445479,-500.0,0.00052327,2]
[314220844,1708091445488,-500.0,0.00052327,2]
[314220845,1708091445498,-500.0,0.00052327,2]
[314220846,1708091445507,-500.0,0.00052327,2]
[314220847,1708091445516,-500.0,0.00052327,2]
[314220848,1708091445525,-500.0,0.00052327,2]
[314220849,1708091445534,-500.0,0.00052327,2]
[314220850,1708091445543,-500.0,0.00052327,2]
[314220851,1708091445552,-500.0,0.00052327,2]
[314220852,1708091445561,-500.0,0.00052327,2]
[314220853,1708091445571,-500.0,0.00052327,2]
[314220854,1708091445581,-500.0,0.00052327,2]
[314220855,1708091445590,-500.0,0.00052327,2]
[314220856,1708091445599,-500.0,0.00052327,2]
[314220857,1708091445609,-500.0,0.00052327,2]
[314220858,1708091445618,-500.0,0.00052327,2]
[314220859,1708091445627,-500.0,0.00052327,2]
[314220860,1708091445636,-500.0,0.00052327,2]
[314220861,1708091445645,-500.0,0.00052327,2]
[314220862,1708091445654,-500.0,0.00052327,2]
[314220863,1708091445664,-500.0,0.00052327,2]
[314220864,1708091445673,-500.0,0.00052327,2]
[314220865,1708091445682,-500.0,0.00052327,2]
[314220866,1708091445691,-500.0,0.00052327,2]
[314220867,1708091445700,-500.0,0.00052327,2]
[314220868,1708091445709,-500.0,0.00052327,2]
[314220869,1708091445717,-500.0,0.00052327,2]
[314220870,1708091445726,-500.0,0.00052327,2]
[314220871,1708091445735,-500.0,0.00052327,2]
[314220872,1708091445743,-500.0,0.00052327,2]
[314220873,1708091445752,-500.0,0.00052327,2]
[314220874,1708091445761,-500.0,0.00052327,2]
[314220875,1708091445771,-500.0,0.00052327,2]
[314220876,1708091445780,-500.0,0.00052327,2]
[314220877,1708091445789,-500.0,0.00052327,2]
[314220878,1708091445798,-500.0,0.00052327,2]
[314220879,1708091445806,-500.0,0.00052327,2]
[314220880,1708091445815,-500.0,0.00052327,2]
[314220881,1708091445824,-500.0,0.00052327,2]
[314220882,1708091445833,-500.0,0.00052327,2]
[314220883,1708091445842,-500.0,0.00052327,2]
[314220884,1708091445851,-500.0,0.00052327,2]
[314220885,1708091445860,-500.0,0.00052327,2]
[314220886,1708091445869,-500.0,0.00052327,2]
[314220887,1708091445877,-500.0,0.00052327,2]
[314220888,1708091445887,-500.0,0.00052327,2]
[314220889,1708091445896,-500.0,0.00052327,2]
[314220890,1708091445905,-207.0,0.00052363,20]
[314220891,1708091445914,-3693.67979953,0.00052429,13]
[314220892,1708091445923,-1417.65908884,0.00052434,30]
[314220893,1708091445932,-150.0,0.00052487,2]
[314220894,1708091445942,-40096.0,0.0005249,120]
[314220895,1708091445953,-145619.3933,0.0005249,120]
[314220896,1708091445962,-152.90020697,0.00052494,50]
[314220898,1708091445971,-200.0,0.000525,31]
[314220899,1708091445981,-595.0,0.000525,30]
[314220901,1708091445991,-251.0,0.000525,30]
[314220902,1708091446000,-210.0,0.0005259,2]
[314220903,1708091446009,-512.69204958,0.0005259,8]
[314220904,1708091446018,-1417.65908884,0.00052625,30]
[314220905,1708091446028,-199.99288599,0.00052643,14]
[314220906,1708091446037,-32125.66406082,0.00052648,13]
[314220907,1708091446046,-205.82600955,0.0005268,90]
[314220908,1708091446054,-200.0,0.0005268,90]
[314220909,1708091446063,-150.0,0.00052689,12]
[314220910,1708091446073,-150.0,0.00052689,12]
[314220911,1708091446082,-150.0,0.00052689,12]
[314220912,1708091446092,-150.0,0.00052689,12]
[314220913,1708091446101,-474236.73353846,0.0005269,31]
[314220914,1708091446218,-258452.45206557,0.0005269,31]
[314220915,1708091446235,-19476.73812839,0.0005269,31]
[314220916,1708091446246,-1716.60681468,0.0005269,31]
[314220917,1708091446298,-6728.41353076,0.0005269,31]
[314220918,1708091446309,-3702.13833544,0.0005269,31]
[314220919,1708091446321,-5002.17151433,0.0005269,31]
[314220921,1708091446452,666.09638,0.0003452,2]
[314220922,1708091446509,529.66855361,0.00034794,2]
[314220923,1708091446569,-469.47601639,0.00034794,2]
[314220924,1708091446579,-1332.19276,0.00034931,2]
[314220925,1708091446589,-1166.4686956,0.00035068,2]
[314220926,1708091446600,-498.7722544,0.00035068,2]
[314220927,1708091446610,-2331.337331,0.00035342,2]
[314220928,1708091446619,-2664.385521,0.00036,2]
[314220929,1708091446629,-150.0,0.0005,30]
[314220930,1708091446638,-1756.65416154,0.00050029,14]
[314220931,1708091446648,-1756.65416154,0.00050672,14]
[314220932,1708091446657,-2664.385521,0.00050684,30]
[314220933,1708091446667,-666.09638,0.00051506,30]
[314220934,1708091446677,-32780.51467136,0.0005269,31]
[314220935,1708091446689,-114018.5044753,0.0005269,31]